fUST/lending_fUST_20240803
["ID","MTS","AMOUNT","RATE_DAILY","PERIOD"]
[334000301,1722672646677,-500.0,0.00013698,2]
[334000303,1722672646688,-500.0,0.00013698,2]
[334000305,1722672646698,-776.9,0.00013698,2]
[334000307,1722672646709,-504.66145901,0.00013698,2]
[334000309,1722672646720,-545.03813334,0.00013698,2]
[334000312,1722672646731,-500.0,0.00013698,2]
[334000314,1722672646742,-500.0,0.00013698,2]
[334000316,1722672646753,-500.0,0.00013698,2]
[334000318,1722672646764,-500.0,0.00013698,2]
[334000320,1722672646774,-500.0,0.00013698,2]
[334000322,1722672646785,-500.0,0.00013698,2]
[334000324,1722672646796,-500.0,0.00013698,2]
[334000326,1722672646806,-503.16626666,0.00013698,2]
[334000328,1722672646817,-500.0,0.00013698,2]
[334000330,1722672646828,-500.0,0.00013698,2]
[334000332,1722672646838,-500.0,0.00013698,2]
[334000334,1722672646848,-742.15,0.00013698,2]
[334000336,1722672646859,-617.35750562,0.00013698,2]
[334000338,1722672646868,-500.0,0.00013698,2]
[334000341,1722672646878,-151.0,0.00013698,2]
[334000343,1722672646888,-500.0,0.00013698,2]
[334000345,1722672646898,-450.62904,0.00013698,2]
[334000347,1722672646908,-497.17330972,0.00013698,2]
[334000349,1722672646919,-500.0,0.00013698,2]
[334000351,1722672646929,-500.0,0.00013698,2]
[334000353,1722672646939,-502.5143802,0.00013698,2]
[334000355,1722672646950,-450.62904,0.00013698,2]
[334000358,1722672646969,-500.0,0.00013698,2]
[334000360,1722672646981,-576.25830808,0.00013698,2]
[334000362,1722672646994,-1536.24,0.00013698,2]
[334000364,1722672647005,-1841.57,0.00013698,2]
[334000366,1722672647016,-405.73231472,0.00013698,2]
[334000368,1722672647026,-500.0,0.00013698,2]
[334000370,1722672647037,-699.75,0.00013698,2]
[334000373,1722672647047,-500.0,0.00013698,2]
[334000375,1722672647058,-377.475111,0.00013699,2]
[334000377,1722672647068,-150.112233,0.000137,2]
[334000379,1722672647079,-185.81019743,0.00013731,2]
[334000381,1722672647089,-151.0,0.00013812,2]
[334000383,1722672647099,-151.444341,0.00013812,2]
[334000385,1722672647109,-151.0,0.00013812,2]
[334000387,1722672647120,-151.0,0.00013812,2]
[334000389,1722672647131,-151.0,0.00013812,2]
[334000391,1722672647141,-1658.11454982,0.0001387,2]
[334000393,1722672647151,-24784.4513681,0.0001395,2]
[334000395,1722672647162,-151.0,0.0001395,2]
[334000397,1722672647172,-151.0,0.00013952,2]
[334000399,1722672647182,-194.95092,0.00013952,2]
[334000401,1722672647192,-194.95092,0.00013952,2]
[334000403,1722672647202,-151.0,0.00013952,2]
[334000405,1722672647212,-151.0,0.00013952,2]
[334000407,1722672647223,-450.62904,0.00013952,2]
[334000410,1722672647233,-450.62904,0.00013952,2]
[334000412,1722672647243,-5313.02250689,0.00013958,2]
[334000414,1722672647253,-151.0,0.0001396,2]
[334000416,1722672647263,-264.67097,0.0001396,2]
[334000418,1722672647273,-151.0,0.0001396,2]
[334000420,1722672647283,-151.0,0.0001396,2]
[334000422,1722672647294,-500.0,0.0001396,2]
[334000423,1722672647303,-656.73,0.00013961,2]
[334000424,1722672647313,-500.0,0.00013961,2]
[334000425,1722672647323,-500.0,0.00013961,2]
[334000426,1722672647333,-500.0,0.00013961,2]
[334000427,1722672647343,-259.73980168,0.00013961,2]
[334000428,1722672647353,-605.67040737,0.00013961,2]
[334000429,1722672647363,-263.79434436,0.00013961,2]
[334000430,1722672647373,-500.0,0.00013961,2]
[334000431,1722672647383,-500.0,0.00013961,2]
[334000432,1722672647394,-500.0,0.00013961,2]
[334000433,1722672647404,-500.0,0.00013961,2]
[334000435,1722672647414,-500.0,0.00013961,2]
[334000436,1722672647423,-500.0,0.00013961,2]
[334000437,1722672647433,-500.0,0.00013961,2]
[334000439,1722672647443,-500.0,0.00013961,2]
[334000441,1722672647453,-500.0,0.00013961,2]
[334000443,1722672647462,-500.0,0.00013961,2]
[334000445,1722672647472,-464.32415923,0.00013961,2]
[334000447,1722672647482,-500.0,0.00013961,2]
[334000449,1722672647492,-500.0,0.00013961,2]
[334000451,1722672647505,-500.0,0.00013961,2]
[334000453,1722672647517,-300.0,0.00013961,2]
[334000455,1722672647527,-151.0,0.00013962,2]
[334000457,1722672647537,-151.0,0.00013962,2]
[334000459,1722672647547,-151.0,0.00013962,2]
[334000462,1722672647557,-151.0,0.00013962,2]
[334000464,1722672647567,-151.0,0.00013962,2]
[334000466,1722672647578,-151.0,0.00013962,2]
[334000468,1722672647588,-342.125284,0.00013962,2]
[334000470,1722672647598,-342.125284,0.00013962,2]
[334000472,1722672647608,-151.0,0.00013962,2]
[334000474,1722672647618,-291.540619,0.00013962,2]
[334000476,1722672647628,-291.540619,0.00013962,2]
[334000478,1722672647638,-151.0,0.00013962,2]
[334000480,1722672647648,-460.998413,0.00013962,2]
[334000482,1722672647658,-319.94342,0.00013962,2]
[334000484,1722672647669,-460.998413,0.00013962,2]
[334000486,1722672647680,-319.94342,0.00013962,2]
[334000488,1722672647690,-739.340672,0.00013962,2]
[334000490,1722672647700,-151.0,0.00013962,2]
[334000492,1722672647710,-151.0,0.00013962,2]
[334000494,1722672647721,-739.340672,0.00013962,2]
[334000497,1722672647731,-709.709307,0.00013962,2]
[334000499,1722672647742,-709.709307,0.00013962,2]
[334000501,1722672647753,-151.0,0.00013962,2]
[334000503,1722672647764,-151.0,0.00013962,2]
[334000505,1722672647774,-151.0,0.00013962,2]
[334000507,1722672647785,-194.95092,0.00013962,2]
[334000509,1722672647795,-194.95092,0.00013962,2]
[334000511,1722672647804,-151.0,0.00013962,2]
[334000513,1722672647815,-151.0,0.00013962,2]
[334000515,1722672647825,-151.0,0.00013962,2]
[334000517,1722672647835,-450.62904,0.00013962,2]
[334000519,1722672647846,-450.62904,0.00013962,2]
[334000521,1722672647856,-74353.3541043,0.00013962,2]
[334000523,1722672647865,-151.0,0.0001397,2]
[334000525,1722672647875,-151.0,0.0001397,2]
[334000527,1722672647885,-264.232269,0.0001397,2]
[334000529,1722672647894,-656.73,0.0001397,2]
[334000531,1722672647904,-460.998413,0.0001397,2]
[334000533,1722672647913,-319.94342,0.0001397,2]
[334000535,1722672647923,-460.998413,0.0001397,2]
[334000537,1722672647933,-319.94342,0.0001397,2]
[334000539,1722672647943,-739.340672,0.0001397,2]
[334000541,1722672647953,-151.0,0.0001397,2]
[334000543,1722672647962,-152.596028,0.0001397,2]
[334000545,1722672647973,-739.340672,0.0001397,2]
[334000547,1722672647983,-709.709307,0.0001397,2]
[334000549,1722672647993,-709.709307,0.0001397,2]
[334000560,1722672648003,-151.0,0.0001397,2]
[334000562,1722672648104,-151.0,0.0001397,2]
[334000564,1722672648114,-656.73,0.00013971,2]
[334000566,1722672648123,-656.73,0.00013971,2]
[334000568,1722672648133,-500.0,0.00013971,2]
[334000570,1722672648143,-432.61183648,0.00013971,2]
[334000586,1722672648293,-67.38816352,0.00013971,2]
[334000588,1722672648303,-500.0,0.00013971,2]
[334000590,1722672648312,-500.0,0.00013971,2]
[334000591,1722672648322,-10215.76043114,0.00013972,5]
[334000593,1722672648333,-500.0,0.00013972,2]
[334000595,1722672648342,-151.005967,0.00013972,2]
[334000598,1722672648352,-500.0,0.00013972,2]
[334000600,1722672648362,-500.0,0.00013972,2]
[334000602,1722672648371,-172.096706,0.00013972,2]
[334000603,1722672648380,-151.0,0.00013972,2]
[334000605,1722672648390,-151.0,0.00013972,2]
[334000607,1722672648399,-526.34,0.00013972,2]
[334000609,1722672648408,-151.906928,0.00013972,2]
[334000611,1722672648418,-500.0,0.00013972,2]
[334000613,1722672648428,-500.0,0.00013972,2]
[334000616,1722672648439,-500.0,0.00013972,2]
[334000618,1722672648450,-500.0,0.00013972,2]
[334000620,1722672648460,-500.0,0.00013972,2]
[334000622,1722672648469,-412.27994082,0.00013972,2]
[334000624,1722672648479,-680.24,0.00013972,2]
[334000626,1722672648490,-500.0,0.00013972,2]
[334000628,1722672648503,-505.03278455,0.00013972,2]
[334000630,1722672648513,-505.4,0.00013972,2]
[334000632,1722672648523,-500.0,0.00013972,2]
[334000634,1722672648532,-500.0,0.00013972,2]
[334000635,1722672648543,-261.83585373,0.00013972,2]
[334000637,1722672648553,-151.0,0.00013972,2]
[334000639,1722672648563,-214.4865471,0.00013972,2]
[334000642,1722672648575,-500.0,0.00013972,2]
[334000644,1722672648584,-500.0,0.00013972,2]
[334000646,1722672648595,-151.0,0.00013972,2]
[334000648,1722672648613,-500.0,0.00013972,2]
[334000652,1722672648632,-500.0,0.00013972,2]
[334000654,1722672648647,-504.71019764,0.00013972,2]
[334000657,1722672648663,-500.0,0.00013972,2]
[334000660,1722672648680,-500.0,0.00013972,2]
[334000662,1722672648695,-500.0,0.00013972,2]
[334000664,1722672648710,-509.93603188,0.00013972,2]
[334000667,1722672648728,-500.0,0.00013972,2]
[334000670,1722672648744,-151.0,0.00013972,2]
[334000672,1722672648758,-500.0,0.00013972,2]
[334000675,1722672648775,-272.57359952,0.00013972,2]
[334000678,1722672648789,-500.0,0.00013972,2]
[334000680,1722672648801,-549.74,0.00013972,2]
[334000682,1722672648814,-500.0,0.00013972,2]
[334000685,1722672648829,-667.84,0.00013972,2]
[334000687,1722672648844,-530.03933689,0.00013972,2]
[334000690,1722672648861,-500.0,0.00013972,2]
[334000693,1722672648880,-512.87472869,0.00013972,2]
[334000695,1722672648891,-500.0,0.00013972,2]
[334000697,1722672648903,-500.0,0.00013972,2]
[334000700,1722672648918,-500.0,0.00013972,2]
[334000702,1722672648934,-500.0,0.00013972,2]
[334000705,1722672648947,-500.0,0.00013972,2]
[334000707,1722672648960,-500.0,0.00013972,2]
[334000710,1722672648974,-483.10143405,0.00013972,2]
[334000712,1722672648986,-502.23158198,0.00013972,2]
[334000714,1722672648998,-500.0,0.00013972,2]
[334000717,1722672649012,-502.84856858,0.00013972,2]
[334000719,1722672649025,-500.0,0.00013972,2]
[334000721,1722672649037,-500.0,0.00013972,2]
[334000723,1722672649051,-500.0,0.00013972,2]
[334000726,1722672649064,-445.87195288,0.00013972,2]
[334000728,1722672649077,-239.262167,0.00013972,2]
[334000731,1722672649092,-500.0,0.00013972,2]
[334000733,1722672649106,-313.90663541,0.00013972,2]
[334000736,1722672649119,-500.0,0.00013972,2]
[334000738,1722672649131,-500.0,0.00013972,2]
[334000740,1722672649145,-500.0,0.00013972,2]
[334000743,1722672649158,-500.0,0.00013972,2]
[334000745,1722672649171,-500.0,0.00013972,2]
[334000748,1722672649185,-911.93,0.00013972,2]
[334000750,1722672649199,-500.0,0.00013972,2]
[334000753,1722672649213,-500.0,0.00013972,2]
[334000755,1722672649227,-500.0,0.00013972,2]
[334000757,1722672649240,-500.0,0.00013972,2]
[334000760,1722672649253,-276.98765039,0.00013972,2]
[334000762,1722672649268,-502.37678949,0.00013972,2]
[334000765,1722672649280,-500.0,0.00013972,2]
[334000767,1722672649293,-500.0,0.00013972,2]
[334000769,1722672649307,-500.0,0.00013972,2]
[334000772,1722672649320,-500.0,0.00013972,2]
[334000774,1722672649334,-500.0,0.00013972,2]
[334000776,1722672649348,-500.0,0.00013972,2]
[334000779,1722672649362,-500.0,0.00013972,2]
[334000781,1722672649373,-500.0,0.00013972,2]
[334000783,1722672649386,-500.0,0.00013972,2]
[334000786,1722672649396,-505.61139527,0.00013972,2]
[334000788,1722672649407,-500.0,0.00013972,2]
[334000790,1722672649417,-500.0,0.00013972,2]
[334000792,1722672649428,-297.65057786,0.00013972,2]
[334000794,1722672649439,-500.0,0.00013972,2]
[334000796,1722672649450,-500.0,0.00013972,2]
[334000798,1722672649459,-500.0,0.00013972,2]
[334000800,1722672649469,-508.92307969,0.00013972,2]
[334000802,1722672649479,-515.16777642,0.00013972,2]
[334000804,1722672649490,-500.0,0.00013972,2]
[334000806,1722672649508,-151.0,0.00013972,2]
[334000819,1722672649655,-151.0,0.00013972,2]
[334000820,1722672649672,-155.644938,0.00013972,2]
[334000821,1722672649682,-342.125284,0.00013972,2]
[334000822,1722672649692,-342.125284,0.00013972,2]
[334000823,1722672649701,-342.125284,0.00013972,2]
[334000824,1722672649711,-829.64,0.00013972,2]
[334000825,1722672649722,-342.125284,0.00013972,2]
[334000826,1722672649731,-500.0,0.00013972,2]
[334000827,1722672649743,-500.0,0.00013972,2]
[334000828,1722672649754,-500.0,0.00013972,2]
[334000829,1722672649767,-7486.07,0.00013972,2]
[334000830,1722672649778,-500.0,0.00013972,2]
[334000831,1722672649787,-539.75,0.00013972,2]
[334000832,1722672649797,-151.0,0.00013972,2]
[334000833,1722672649809,-151.0,0.00013972,2]
[334000834,1722672649819,-500.0,0.00013972,2]
[334000835,1722672649829,-500.0,0.00013972,2]
[334000836,1722672649840,-500.0,0.00013972,2]
[334000837,1722672649850,-500.0,0.00013972,2]
[334000838,1722672649861,-805.98,0.00013972,2]
[334000839,1722672649872,-521.01053025,0.00013972,2]
[334000840,1722672649882,-434.64539134,0.00013972,2]
[334000841,1722672649897,-500.0,0.00013972,2]
[334000842,1722672649906,-198.86394933,0.00013972,2]
[334000843,1722672649918,-503.27310266,0.00013972,2]
[334000845,1722672649930,-3026.57,0.00013972,2]
[334000846,1722672649941,-532.63,0.00013972,2]
[334000847,1722672649950,-291.540619,0.00013972,2]
[334000849,1722672649960,-291.540619,0.00013972,2]
[334000851,1722672649969,-291.540619,0.00013972,2]
[334000853,1722672649978,-500.0,0.00013972,2]
[334000855,1722672649988,-291.540619,0.00013972,2]
[334000857,1722672649997,-500.0,0.00013972,2]
[334000859,1722672650007,-262.1669064,0.00013972,2]
[334000861,1722672650016,-190.67505,0.00013972,2]
[334000863,1722672650025,-500.0,0.00013972,2]
[334000865,1722672650035,-610.11,0.00013972,2]
[334000867,1722672650044,-1240.99,0.00013972,2]
[334000869,1722672650053,-503.55998072,0.00013972,2]
[334000871,1722672650063,-500.0,0.00013972,2]
[334000873,1722672650072,-4211.79,0.00013972,2]
[334000874,1722672650081,-877.44,0.00013972,2]
[334000876,1722672650090,-500.0,0.00013972,2]
[334000878,1722672650099,-500.0,0.00013972,2]
[334000880,1722672650109,-500.0,0.00013972,2]
[334000882,1722672650119,-500.0,0.00013972,2]
[334000884,1722672650128,-1121.54,0.00013972,2]
[334000886,1722672650137,-500.0,0.00013972,2]
[334000888,1722672650147,-738.36,0.00013972,2]
[334000890,1722672650156,-500.0,0.00013972,2]
[334000892,1722672650165,-500.0,0.00013972,2]
[334000894,1722672650174,-500.0,0.00013972,2]
[334000896,1722672650184,-500.0,0.00013972,2]
[334000898,1722672650194,-505.14401387,0.00013972,2]
[334000900,1722672650203,-1209.24,0.00013972,2]
[334000902,1722672650212,-769.5,0.00013972,2]
[334000904,1722672650222,-870.86,0.00013972,2]
[334000906,1722672650232,-2026.77,0.00013972,2]
[334000908,1722672650241,-774.83,0.00013972,2]
[334000910,1722672650250,-500.0,0.00013972,2]
[334000912,1722672650260,-505.77972401,0.00013972,2]
[334000914,1722672650269,-500.0,0.00013972,2]
[334000916,1722672650279,-500.0,0.00013972,2]
[334000918,1722672650288,-460.998413,0.00013972,2]
[334000920,1722672650300,-500.0,0.00013972,2]
[334000922,1722672650312,-460.998413,0.00013972,2]
[334000924,1722672650322,-500.0,0.00013972,2]
[334000926,1722672650331,-319.94342,0.00013972,2]
[334000928,1722672650342,-319.94342,0.00013972,2]
[334000930,1722672650351,-460.998413,0.00013972,2]
[334000932,1722672650360,-460.998413,0.00013972,2]
[334000934,1722672650370,-500.0,0.00013972,2]
[334000936,1722672650379,-500.0,0.00013972,2]
[334000938,1722672650389,-5560.35,0.00013972,2]
[334000940,1722672650398,-319.94342,0.00013972,2]
[334000942,1722672650407,-319.94342,0.00013972,2]
[334000944,1722672650417,-500.0,0.00013972,2]
[334000946,1722672650428,-540.98,0.00013972,2]
[334000948,1722672650438,-500.0,0.00013972,2]
[334000950,1722672650448,-500.0,0.00013972,2]
[334000952,1722672650458,-500.0,0.00013972,2]
[334000954,1722672650470,-500.0,0.00013972,2]
[334000956,1722672650482,-500.0,0.00013972,2]
[334000958,1722672650492,-867.0,0.00013972,2]
[334000960,1722672650508,-631.7737438,0.00013972,2]
[334000962,1722672650518,-838.27,0.00013972,2]
[334000964,1722672650530,-999.17,0.00013972,2]
[334000966,1722672650539,-739.340672,0.00013972,2]
[334000968,1722672650549,-151.0,0.00013972,2]
[334000970,1722672650558,-739.340672,0.00013972,2]
[334000972,1722672650569,-244.264047,0.00013972,2]
[334000974,1722672650582,-500.0,0.00013972,2]
[334000976,1722672650594,-311.59922471,0.00013972,2]
[334000979,1722672650606,-539.79441756,0.00013972,2]
[334000981,1722672650616,-500.0,0.00013972,2]
[334000983,1722672650628,-1757.41,0.00013972,2]
[334000985,1722672650638,-739.340672,0.00013972,2]
[334000987,1722672650648,-739.340672,0.00013972,2]
[334000989,1722672650658,-500.0,0.00013972,2]
[334000991,1722672650670,-500.0,0.00013972,2]
[334000994,1722672650680,-500.0,0.00013972,2]
[334000995,1722672650691,-505.28194984,0.00013972,2]
[334000998,1722672650701,-500.0,0.00013972,2]
[334001000,1722672650711,-709.709307,0.00013972,2]
[334001002,1722672650722,-500.0,0.00013972,2]
[334001004,1722672650732,-1400.28,0.00013972,2]
[334001006,1722672650741,-709.709307,0.00013972,2]
[334001008,1722672650751,-709.709307,0.00013972,2]
[334001010,1722672650761,-709.709307,0.00013972,2]
[334001012,1722672650771,-151.0,0.00013972,2]
[334001014,1722672650780,-151.0,0.00013972,2]
[334001016,1722672650790,-252.635338,0.00013972,2]
[334001018,1722672650800,-522.54,0.00013972,2]
[334001020,1722672650810,-252.635338,0.00013972,2]
[334001022,1722672650820,-181.33669,0.00013972,2]
[334001024,1722672650829,-505.1,0.00013972,2]
[334001026,1722672650838,-252.635338,0.00013972,2]
[334001028,1722672650848,-500.0,0.00013972,2]
[334001030,1722672650858,-252.635338,0.00013972,2]
[334001032,1722672650867,-500.0,0.00013972,2]
[334001034,1722672650877,-500.0,0.00013972,2]
[334001036,1722672650888,-500.0,0.00013972,2]
[334001038,1722672650898,-2316.83,0.00013972,2]
[334001040,1722672650908,-602.99,0.00013972,2]
[334001042,1722672650917,-500.0,0.00013972,2]
[334001044,1722672650927,-500.0,0.00013972,2]
[334001046,1722672650938,-500.0,0.00013972,2]
[334001048,1722672650947,-508.67393863,0.00013972,2]
[334001051,1722672650960,-1643.41,0.00013972,2]
[334001053,1722672650970,-657.2,0.00013972,2]
[334001055,1722672650980,-500.0,0.00013972,2]
[334001057,1722672650989,-500.0,0.00013972,2]
[334001059,1722672650999,-500.0,0.00013972,2]
[334001061,1722672651009,-504.80325072,0.00013972,2]
[334001063,1722672651018,-504.76316289,0.00013972,2]
[334001065,1722672651028,-500.0,0.00013972,2]
[334001067,1722672651038,-1531.07,0.00013972,2]
[334001069,1722672651048,-500.0,0.00013972,2]
[334001071,1722672651057,-151.0,0.00013972,2]
[334001073,1722672651067,-151.0,0.00013972,2]
[334001075,1722672651076,-500.0,0.00013972,2]
[334001077,1722672651086,-500.0,0.00013972,2]
[334001079,1722672651095,-1588.46,0.00013972,2]
[334001080,1722672651104,-500.0,0.00013972,2]
[334001082,1722672651115,-2348.9554638,0.00013972,2]
[334001085,1722672651134,-365.68435669,0.00013972,2]
[334001088,1722672651154,-3521.09017951,0.00013972,2]
[334001090,1722672651164,-834.77,0.00013972,2]
[334001092,1722672651173,-500.0,0.00013972,2]
[334001094,1722672651183,-1164.61,0.00013972,2]
[334001096,1722672651192,-500.0,0.00013972,2]
[334001098,1722672651202,-129.24051138,0.00013972,2]
[334001101,1722672651214,-424.46948862,0.00013972,2]
[334001103,1722672651223,-500.0,0.00013972,2]
[334001105,1722672651232,-500.0,0.00013972,2]
[334001107,1722672651244,-500.0,0.00013972,2]
[334001109,1722672651254,-500.0,0.00013972,2]
[334001111,1722672651266,-500.0,0.00013972,2]
[334001113,1722672651276,-164.50159207,0.00013972,2]
[334001117,1722672651298,-30.44932793,0.00013972,2]
[334001119,1722672651308,-194.95092,0.00013972,2]
[334001121,1722672651319,-134.10075211,0.00013972,2]
[334001135,1722672651439,-2000.0,0.00013598,2]
[334001137,1722672651449,-500.0,0.00013698,2]
[334001139,1722672651460,-500.0,0.00013698,2]
[334001141,1722672651471,-1228.41924789,0.00013972,2]
[334001143,1722672651481,-500.0,0.00013972,2]
[334001146,1722672651491,-194.95092,0.00013972,2]
[334001147,1722672651505,-31.77194968,0.00013972,2]
[334001150,1722672651520,-119.22805032,0.00013972,2]
[334001152,1722672651532,-194.95092,0.00013972,2]
[334001154,1722672651544,-151.0,0.00013972,2]
[334001157,1722672651555,-500.0,0.00013972,2]
[334001159,1722672651566,-1543.89,0.00013972,2]
[334001161,1722672651578,-151.0,0.00013972,2]
[334001163,1722672651589,-257.787362,0.00013972,2]
[334001165,1722672651600,-500.0,0.00013972,2]
[334001167,1722672651612,-500.0,0.00013972,2]
[334001169,1722672651621,-776.9,0.00013972,2]
[334001172,1722672651632,-742.15,0.00013972,2]
[334001174,1722672651643,-448.48008776,0.00013972,2]
[334001176,1722672651654,-151.0,0.00013972,2]
[334001178,1722672651665,-151.0,0.00013972,2]
[334001180,1722672651676,-505.48610624,0.00013972,2]
[334001182,1722672651686,-134.92982953,0.00013972,2]
[334001185,1722672651699,-315.69921047,0.00013972,2]
[334001187,1722672651710,-450.62904,0.00013972,2]
[334001189,1722672651720,-506.40803206,0.00013972,2]
[334001191,1722672651730,-500.0,0.00013972,2]
[334001193,1722672651739,-500.0,0.00013972,2]
[334001195,1722672651750,-450.62904,0.00013972,2]
[334001197,1722672651759,-450.62904,0.00013972,2]
[334001209,1722672651859,-1536.24,0.00013972,2]
[334001211,1722672651871,-1841.57,0.00013972,2]
[334001213,1722672651881,-500.0,0.00013972,2]
[334001215,1722672651892,-699.75,0.00013972,2]
[334001218,1722672651904,-500.0,0.00013972,2]
[334001220,1722672651915,-500.0,0.00013972,2]
[334001222,1722672651926,-500.0,0.00013972,2]
[334001224,1722672651937,-274.663,0.00013998,2]
[334001226,1722672651948,-514.972,0.00013998,2]
[334001228,1722672651957,-377.19974566,0.00013998,2]
[334001230,1722672651969,-1032.80025434,0.00013998,2]
[334001232,1722672651978,-229.6825641,0.00014,2]
[334001234,1722672651988,-153.0,0.00014,2]
[334001236,1722672651997,-430.8713912,0.00014,2]
[334001238,1722672652007,-150.112233,0.00014,2]
[334001241,1722672652016,-1000.0,0.00014,14]
[334001243,1722672652026,-150.112233,0.000141,2]
[334001245,1722672652036,-200.0,0.00014146,2]
[334001247,1722672652045,-150.112233,0.000142,2]
[334001249,1722672652056,-656.73,0.00014206,2]
[334001251,1722672652067,-252.635338,0.00014206,2]
[334001253,1722672652077,-252.635338,0.00014206,2]
[334001255,1722672652088,-504.87,0.00014206,2]
[334001257,1722672652098,-151.0,0.00014207,2]
[334001259,1722672652108,-151.0,0.00014207,2]
[334001261,1722672652119,-633.6077968,0.00014213,2]
[334001263,1722672652130,-656.73,0.00014216,2]
[334001265,1722672652140,-286.36599933,0.00014217,2]
[334001312,1722672652667,-294.2310959,0.00013278,2]
[334001314,1722672652678,-11985.84509344,0.00014217,2]
[334001316,1722672652693,-34628.5962648,0.00014217,2]
[334007008,1722673262230,1111.0,0.00027,120]
[334007010,1722673656733,1538.4,0.00027,120]
[334007013,1722673727418,58742.5350601,0.00023,120]
[334007014,1722673729140,818.24381676,0.00025,120]
[334007055,1722673832051,-168.125433,0.00012986,2]
[334007056,1722673832061,-379.76537605,0.00013,2]
[334007061,1722673838050,-8722.2767903,0.00013,2]
[334007062,1722673838061,-300.0,0.00013587,2]
[334007063,1722673838070,-745.28168626,0.00013588,2]
[334007064,1722673838080,-598.17,0.00013597,2]
[334007065,1722673838089,-598.17,0.00013597,2]
[334007066,1722673838099,-152.45249248,0.00013598,2]
[334007067,1722673838108,-152.45249246,0.00013667,2]
[334007068,1722673838118,-16328.90607539,0.00013688,2]
[334007069,1722673838128,-37465.62063239,0.00013688,2]
[334007110,1722673840377,-629.93679996,0.00013688,2]
[334007124,1722673843021,-616.73,0.00013688,2]
[334007125,1722673843130,-3975.57262652,0.00013688,2]
[334007126,1722673843150,-8966.40089833,0.00013688,2]
[334007127,1722673843161,-598.17,0.00013697,2]
[334007128,1722673843170,-598.17,0.00013697,2]
[334007129,1722673843180,-500.0,0.00013698,2]
[334007130,1722673843190,-641.5345268,0.00013698,2]
[334007132,1722673843201,-512.2787417,0.00013698,2]
[334007134,1722673843213,-500.0,0.00013698,2]
[334007136,1722673843223,-500.0,0.00013698,2]
[334007138,1722673843232,-500.0,0.00013698,2]
[334007139,1722673843242,-500.0,0.00013698,2]
[334007140,1722673843252,-500.0,0.00013698,2]
[334007141,1722673843262,-500.0,0.00013698,2]
[334007142,1722673843271,-500.0,0.00013698,2]
[334007143,1722673843281,-500.0,0.00013698,2]
[334007144,1722673843291,-500.0,0.00013698,2]
[334007145,1722673843300,-500.0,0.00013698,2]
[334007146,1722673843310,-500.0,0.00013698,2]
[334007147,1722673843320,-760.5,0.00013698,2]
[334007148,1722673843329,-500.0,0.00013698,2]
[334007149,1722673843339,-500.0,0.00013698,2]
[334007150,1722673843349,-293.57615039,0.00013698,2]
[334007151,1722673843359,-500.0,0.00013698,2]
[334007152,1722673843368,-500.0,0.00013698,2]
[334007153,1722673843378,-835.93,0.00013698,2]
[334007154,1722673843388,-500.0,0.00013698,2]
[334007155,1722673843399,-500.0,0.00013698,2]
[334007156,1722673843408,-500.0,0.00013698,2]